Workbook

Sheet Cover Page
D1: Add company logo
N2: Version 2.1 11/11/19
B8: Add photo
N13: Notes:
N14: This template may require adjustments by individual operators to meet specific reporting requirements as defined in the site Permit(s)
B29: Annual Performance Report 2021
B31: Permit EPR/XP3833DK
B33: enfinium Ferrybridge 2 Ltd
B35: Ferrybridge 2
B39: Year: | C39: 2021
B41: Address: | C41: Stranglands Lane, Knottingley, West Yorkshire, WF11 8SQ
B43: Tel: | C43: 01977 636963
B45: Email: | C45: john.warren@enfinium.co.uk
B47: Prepared by: | C47: John Warren | F47: Position: | G47: Environmental Manager
B49: Approved by: | C49: John Warren | F49: Position: | G49: Environmental Manager
B51: Version: | C51: 1
B53: Issue Date: | C53: 2022-01-31

Sheet Contents
A1: =+'Cover Page'!$B$29 -> Annual Performance Report 2021 | E1: =+'Cover Page'!$B$33 -> enfinium Ferrybridge 2 Ltd
A3: Contents | K3: Notes:
A4: Section | B4: Subject | H4: Page | K4: Section references and Page nos. to be inserted
B5: Facility Information | H5: 4 | K5: Sections and Subjects may require adjustment by individual operators to meet specific reporting requirements as defined in the sites Permit(s)
B6: Operational Data | H6: 5
B7: Operational Summary | H7: 7
B8: Performance Form 1 | H8: 8
B9: Energy Form 1 | H9: 10
B10: Permit Compliance | H10: 11
B11: Improvements | H11: 13
B12: Public Liasion | H12: 14
B13: Residue Quality - Optional | H13: 15
B14: Emissions to Water | H14: 16
B15: Emissions to Air (periodically monitored) | H15: 17
B16: Emissions to Air (continuously monitored) | H16: 19
B17: Oxides of Nitrogen emissions | H17: 20
B18: Sulphur Dioxide emissions | H18: 21
B19: Hydrogen Chloride emissions | H19: 22
B20: Total Organic Carbon emissions | H20: 23
B21: Particulate Matter emissions | H21: 24
B22: Ammonia emissions | H22: 25
B23: Carbon Monoxide emissions | H23: 26
A26: Version Control
A27: Section | B27: Information | H27: Date
A34: Distribution
A35: Copy | B35: Name, Role | H35: No.
A44: This report is required under the Industrial Emissions Directive’s Article 55(2) requirements on reporting and public information on waste incineration plants and co-incineration plants, which require the operator to produce an annual report on the functioning and monitoring of the plant and make it available to the public.

Sheet Facility Info
A1: =+'Cover Page'!$B$29 -> Annual Performance Report 2021 | E1: =+'Cover Page'!$B$33 -> enfinium Ferrybridge 2 Ltd
A3: Plant Description and Design | K3: Notes:
A5: Ferrybridge 2 is designed for the disposal of waste with energy recovery in an incineration plant and is permitted under Section 5.1 A(1)(b) the incineration of non-hazardous waste in an incineration plant with a capacity exceeding 3 tonnes per hour. The installation is located on land to the north of Ferrybridge 1 site, close to the A1(M). It lies approximately 1km northwest of the village of Ferrybridge, 2km northwest of Knottingley, 1.8km southeast of Ferry Fryston, and 3km northeast of Pontefract, at grid reference SE 472 254. The facility has a throughput limit of 725,000 tonnes per year of waste which can include refuse derived fuel, waste wood and commercial and industrial waste. The facility consists of two combustion lines and generates approximately 80 MWe of electricity, of which approximately 73 MWe is exported. Moving grate technology is used for burning the waste material. The furnace design ensures that a temperature of at least 850 degrees celcius for a period of at least two seconds is achieved in the combustion chamber. Auxillary burners firing a low sulphur gas oil are automatically triggered by online process monitoring equipment are used to ensure the temperature does not fall below 850 degrees celcius. Hot gases from the furnace pass in a boiler. Steam raised in the boiler is passed to a turbine to generate electricity for export to the National Grid. | K5: Include summary of plant design, design capacity, no. of combustion lines, electrical and heat capacity and any other general information that descibes the facility, its location and purpose
A20: Summary of Operational Processes and Procedures
A22: Key processes include waste reception, waste storage, water use, drainage, flue gas and air supply systems, boilers, treatment of exhaust gases, treatment and storage of residues and water recycling, stacks, devices and systems for controlling incineration operations, recording and monitoring conditions. The site has an Environmental Management System accredited to ISO 14001. Health and Safety management system covering all aspects of health and safety comprising policy, procedures, risk assessments, Key Performance Indicators (KPIs) and objectives reviewed periodically. Accreditation to ISO 45001:2018 was obtained in April 2020. Maintenance across the facilities is broken down in to reactive (breakdown) maintenance, and planned preventive maintenance. Preventive maintenance is conducted via the philosophy of Risk Based Inspections to ensure the safety of personnel and availability of the plant is cost effectively maintained. | K22: Include summary of key processes and procedures such as (but not limited to); waste reception, control rooms, grate, bed and bolier, energy & heat generation, cooling systems, residue management, emission controls, health and safety systems, maintenance

Sheet Operational Data
A1: =+'Cover Page'!$B$29 -> Annual Performance Report 2021 | E1: =+'Cover Page'!$B$33 -> enfinium Ferrybridge 2 Ltd
A3: Operational Data
A4: Plant Size | B4: 725000 | D4: tonnes pa | E4: 80 | F4: MWth | G4: 73 | H4: MWe
A5: No. of combustion lines | B5: 2 | D5: No. of Turbines: | F5: 1
A7: Waste types received | B7: Unit | C7: Q1 | D7: Q2 | E7: Q3 | F7: Q4 | G7: Year Total | H7: %
A8: Household / Local Authority | B8: tonnes | G8: =SUM(C8:F8) -> 0 | H8: =IF(G8>0,G8/$G$18,"-") -> -
A9: Commercial & Industrial | G9: =SUM(C9:F9) -> 0 | H9: -
A10: Hazardous | G10: 0 | H10: -
A11: Clinical | G11: 0 | H11: -
A12: Waste wood (biomass) | G12: 0 | H12: -
A13: Refuse derived fuel | C13: 169270.28 | D13: 147840.1 | E13: 176918.16 | F13: 174912.3 | G13: 668940.84 | H13: 1
A14: Solid recovered fuel | G14: 0 | H14: -
A15: Other [Please specify] | G15: 0 | H15: -
A16: Other [Please specify]
A17: Other [Please specify]
A18: Total waste received | C18: =SUM(C8:C17) -> 169270.28 | D18: =SUM(D8:D17) -> 147840.1 | E18: =SUM(E8:E17) -> 176918.16 | F18: =SUM(F8:F17) -> 174912.3 | G18: =SUM(G8:G17) -> 668940.84 | H18: =IF(G18>0,G18/$G$18,"-") -> 1
A19: Rejected Waste | G19: =SUM(C19:F19) -> 0 | H19: =IF(G19>0,G19/$G$18,"-") -> -
A20: Waste transferred out | G20: =SUM(C20:F20) -> 0 | H20: =IF(G20>0,G20/$G$18,"-") -> -
A21: Total waste combusted | C21: =C18-SUM(C19:C20) -> 169270.28 | D21: =D18-SUM(D19:D20) -> 147840.1 | E21: 176918.16 | F21: 174912.3 | G21: =SUM(C21:F21) -> 668940.84 | H21: =IF(G21>0,G21/$G$21,"-") -> 1
A23: Energy Useage / Export | B23: Unit | C23: Q1 | D23: Q2 | E23: Q3 | F23: Q4 | G23: Year Total | H23: KWh/te
A24: Power Generated | B24: MWh | C24: 169391.6 | D24: 151470 | E24: 178428.3 | F24: 178239.3 | G24: =SUM(C24:F24) -> 677529.2 | H24: =IF(G24>0,G24*1000/$G$21,"-") -> 1012.838744
A25: Power Exported | C25: 154376.9 | D25: 139844.5 | E25: 162616.8 | F25: 162569.7 | G25: =SUM(C25:F25) -> 619407.9 | H25: =IF(G25>0,G25*1000/$G$21,"-") -> 925.9531829
A26: Power Used on site | C26: =C24-C25 -> 15014.7 | D26: =D24-D25 -> 11625.5 | E26: 15811.5 | F26: 15669.6 | G26: =SUM(C26:F26) -> 58121.3 | H26: 86.88556076
A27: Power Imported | C27: 0 | D27: 319.737 | E27: 22.898 | F27: 0 | G27: 342.635 | H27: 0.5122052348
A28: Parasitic Load | B28: % | C28: =IF(C24>0,1-C25/(C24+C27),"-") -> 0.088638988 | D28: =IF(D24>0,1-D25/(D24+D27),"-") -> 0.07869594635 | E28: 0.08873237152 | F28: 0.08791327165 | G28: 0.0862462961
A29: Thermal Energy Produced | B29: GWh | G29: =SUM(C29:F29) -> 0 | H29: =IF(G29>0,G29*1000/$G$21,"-") -> -
A30: Thermal Energy Exported | G30: 0 | H30: =IF(G30>0,G30*1000/$G$21,"-") -> -
A31: R1 value | C31: 0.85 | G31: Design / Operational / n/a
A33: Waste Disposal & Recovery | B33: Unit | C33: Q1 | D33: Q2 | E33: Q3 | F33: Q4 | G33: Year Total | H33: % inputs
A34: APC Residues - produced | B34: tonnes | C34: 6960.26 | D34: 5906.38 | E34: 6811.2 | F34: 7559.58 | G34: =SUM(C34:F34) -> 27237.42 | H34: =IF(G34>0,G34/$G$21,"-") -> 0.04071723293
A35: IBA - produced | C35: 31195 | D35: 29063 | E35: 33910 | F35: 30627 | G35: 124795 | H35: =IF(G35>0,G35/$G$21,"-") -> 0.1865561086
A36: Metals recycling | C36: 1167.72 | D36: 991.34 | E36: 1427.18 | F36: 1476.42 | G36: =SUM(C36:F36) -> 5062.66 | H36: =IF(G36>0,G36/$G$21,"-") -> 0.007568172994
A37: Dry mixed recycling | C37: 0.56 | D37: 0.58 | E37: 0.38 | F37: 0.62 | G37: =SUM(C37:F37) -> 2.14 | H37: 3.199087082e-06
A38: General waste | C38: 4.5 | D38: 14.52 | E38: 5.5 | F38: 4.38 | G38: 28.9 | H38: 4.320262461e-05
A39: APCr contaminated waste | C39: 2.5 | D39: 1.25 | E39: 28.786 | F39: 6.8 | G39: =SUM(C39:F39) -> 39.336 | H39: =IF(G39>0,G39/$G$21,"-") -> 5.880340629e-05
A40: Waste lime | C40: 1.6 | D40: 1.04 | E40: 0 | F40: 0.72 | G40: 3.36 | H40: 5.022865699e-06
A41: Activated carbon waste | C41: 0.25 | D41: 0 | E41: 0 | F41: 0 | G41: 0.25 | H41: 3.737251264e-07
A42: Ash contaminated water | C42: 3.62 | D42: 0 | E42: 0 | F42: 0 | G42: 3.62 | H42: 5.411539831e-06
A43: Waste wood | C43: 0.52 | D43: 2.2 | E43: 0.6 | F43: 0.74 | G43: 4.06 | H43: 6.069296053e-06
A44: Glycol liquid waste | C44: 0 | D44: 0.04 | E44: 0 | F44: 0 | G44: 0.04 | H44: 5.979602023e-08
A45: Oil contaminated solid waste | C45: 0.75 | D45: 1.65 | E45: 1 | F45: 1.5 | G45: 4.9 | H45: 7.325012478e-06
A46: Spent ion exchange resin | C46: 0.5 | D46: 0.04 | E46: 0.033 | F46: 0 | G46: 0.573 | H46: 8.565779898e-07
A47: Waste Electronic and Electrical Equipment | C47: 0 | D47: 0 | E47: 0.1 | F47: 0 | G47: 0.1 | H47: 1.494900506e-07
A48: Waste hydraulic oil | C48: 0 | D48: 2.84 | E48: 0 | F48: 0 | G48: 2.84 | H48: 4.245517436e-06
A49: Oversized unburned material | C49: 246.96 | D49: 147.22 | E49: 87.9 | F49: 27.64 | G49: =SUM(C49:F49) -> 509.72 | H49: =IF(G49>0,G49/$G$21,"-") -> 0.0007619806858
A50: Sewage | C50: 0 | D50: 47.3 | E50: 0 | F50: 0 | G50: 47.3 | H50: 7.070879392e-05
A51: Cement | C51: 0 | D51: 0 | E51: 0 | F51: 22 | G51: 22 | H51: 3.288781113e-05
A52: Other | C52: 0 | D52: 0 | E52: 0 | F52: 0 | G52: 0 | H52: -
A54: Raw Material Usage | B54: Unit | C54: Q1 | D54: Q2 | E54: Q3 | F54: Q4 | G54: Year Total | H54: kg or Ltr /te
A55: Mains Water | B55: m3 | C55: 23924 | D55: 21821 | E55: 13312 | F55: 13334 | G55: =SUM(C55:F55) -> 72391 | H55: =IF(G55>0,G55*1000/$G$21,"-") -> 108.2173425
A56: Other Water | B56: m3 | C56: 22942.512 | D56: 16619.028 | E56: 25757.89 | F56: 18657.28 | G56: 83976.71 | H56: =IF(G56>0,G56*1000/$G$21,"-") -> 125.5368262
A57: Ammonia / Urea | B57: kgs | C57: 31467 | D57: 75290 | E57: 58772 | F57: 77079 | G57: 242608 | H57: =IF(G57>0,G57*1000/$G$21,"-") -> 362.6748219
A58: Activated Carbon | B58: kgs | C58: 62575 | D58: 59023 | E58: 66582 | F58: 68961 | G58: 257141 | H58: 384.4002109
A59: Lime / hydrated lime | B59: kgs | C59: 3070900 | D59: 2679700 | E59: 3248120 | F59: 3460610 | G59: 12459330 | H59: 18625.45872
A60: Fuel oil | B60: ltrs | C60: 146953 | D60: 163860 | E60: 64232.481 | F60: 55810.56 | G60: 430856.041 | H60: 644.0869136
A61: Gas | B61: cf | C61: 0 | D61: 0 | E61: 0 | F61: 0 | G61: 0 | H61: -
A62: Other | C62: 0 | D62: 0 | E62: 0 | F62: 0 | G62: 0 | H62: -
A64: Summary of Hours | B64: Line/Unit | C64: Q1 | D64: Q2 | E64: Q3 | F64: Q4 | G64: Year Total
A65: Hours of waste combustion, total | B65: =+B5 -> 2 | C65: 2112.658 | D65: 1971.644 | E65: 2204 | F65: 2095.479 | G65: =SUM(C65:F65) -> 8383.781 | H65: =+(G65)/8760 -> 0.9570526256
A66: Hours of waste combustion, total | B66: 2 | C66: 2155.658 | D66: 1955.644 | E66: 2201 | F66: 2208.479 | G66: 8520.781 | H66: =+(G66)/8760 -> 0.972691895
A67: Hours of turbine operations, total | B67: 1 | C67: 2155 | D67: 1955 | E67: 2201 | F67: 2208 | G67: 8519 | H67: 0.9724885845
A68: Hours of heat / steam export | C68: 0 | D68: 0 | E68: 0 | F68: 0 | G68: 0 | H68: =IF(B68>0,#REF!/8760,"n/a") -> n/a
A69: Abnormal Events | B69: qty. | C69: 0 | E69: 0 | F69: 1 | G69: 1 | H69: =IF(G69>0,"yes","no") -> yes
A70: Abnormal operation | B70: hours | C70: 0 | D70: 0 | E70: 0 | F70: 0.5 | G70: 0.5 | H70: =+(G70)/8760 -> 5.707762557e-05
A71: Permit Breaches | B71: qty. | C71: 0 | D71: 0 | E71: 0 | F71: 0 | G71: 0 | H71: =IF(G71>0,"yes","no") -> no

Sheet Operational Summary
A1: =+'Cover Page'!$B$29 -> Annual Performance Report 2021 | E1: =+'Cover Page'!$B$33 -> enfinium Ferrybridge 2 Ltd
A3: Summary of Plant Operations and Maintenance during the reporting year | K3: Notes:
A5: Ferrybridge 2 Operations - Significant downtime events 23/2/21 – Boiler 1 Feed hopper bridge and auxiliary crane umbilical snapped so unavailable (13hrs). 3/3/21 – Boiler 1 Feed hopper blockage (15hrs) 12/3/21 – Boiler 1 ID fan bearing replacement (16hrs) 14/4/21 - Crane tripped above Boiler 2 hopper (10hrs) 22/4/21 - Boiler 2 ID fan motor change (23hrs) 4/5/21 – Boiler 1 annual outage (204hrs) 9/5/21 – Boiler 2 annual outage (193hrs) 22/8/21 – Plant taken off as a precaution during Ferrybridge C PS demolition. 22/12/21 – Boiler 1 steam isolation valve replacement and 2nd/3rd pass blockage (113hrs). Maintenance Annual boiler outages completed on lines 1 & 2. Work scope included (but was not limited to): •Full boiler inspection including refractory, wall panels and grate. •Full inspection of associated plant with minor refurb work (Ash transport, FGT, Primary/Secondary air etc). Upgrades •Installation of secondary standby CEMS analyser on both lines. | K5: Include summary of key operational and/or mainteanance activity undertaken in the year, such as any major component upgrades and/or replacements
A29: Summary of Residue Handling for the reporting year
A31: Incinerator Bottom Ash (IBA) from Ferrybridge 2 is stored in the Ash Bunker and then outloaded by the ash crane grab to receiving lorries. Since operations began in 2019, the IBA has been collected and taken to Blue Phoenix Ferrybridge (formerly Ballast Phoenix) site, which is adjacent to the north of the Ferrybridge 2 site. Movement of the IBA is carried out by dumper truck via a predominantly internal road network to the Blue Phoenix site where it is processed into Incinerator Bottom Ash Aggregate (IBAA). APCr is collected in silos and then discharged to receiving tanker for off-site disposal. The APCr is transported to OCO Technology and occasionally to Castle Environmental Ltd. Castle Environmental receives APCr at two sites located in Ilkeston (Derbyshire) and Stoke on Trent, whereas OCO Technology has one site located in Leeds. Castle Environmental currently recycles approximately 79% of the APCr whereas OCO Technology recycles 100%. | K31: Include in here a summary of residue handling regimes and destinations

Sheet Perf. Form 1
A1: =+'Cover Page'!C39 -> 2021 | B1: Annual Reporting Performance Form 1
A3: =+'Cover Page'!B31 -> Permit EPR/XP3833DK | F3: Operator: | G3: =+'Cover Page'!B37:I37 -> 0
A4: Facility: | B4: =+'Cover Page'!B33:I33 -> enfinium Ferrybridge 2 Ltd | F4: Form: | G4: Performance 1
A6: Reporting Period from: | D6: 2021-01-01 | F6: to: | G6: 2021-12-31
A8: =+A1 -> 2021 | B8: Annual Reporting of Waste Disposal and Recovery
A9: Waste Description | C9: Disposal Route(s) | E9: Disposal Tonnes | G9: Recovery Tonnes | I9: % / tonne of waste incinerated
A10: 1) Hazardous Wastes
A11: APC Residues | C11: R5/D9 | E11: 1052.5 | G11: 26184.9 | I11: =IF((E11+G11)>0,(E11+G11)/'Operational Data'!$G$21, "-") -> 0.04071720303
A12: APCr contaminated waste | C12: D14/D15/R13 | E12: 38.34 | G12: 1 | I12: =IF((E12+G12)>0,(E12+G12)/'Operational Data'!$G$21, "-") -> 5.880938589e-05
A13: Waste lime | C13: D9/D14/R13 | E13: 2.16 | G13: 1.2 | I13: =IF((E13+G13)>0,(E13+G13)/'Operational Data'!$G$21, "-") -> 5.022865699e-06
A14: Ash contaminated water | C14: D9 | E14: 3.62 | G14: 0 | I14: =IF((E14+G14)>0,(E14+G14)/'Operational Data'!$G$21, "-") -> 5.411539831e-06
A15: Glycol waste | C15: R13 | E15: 0 | G15: 0.04 | I15: =IF((E15+G15)>0,(E15+G15)/'Operational Data'!$G$21, "-") -> 5.979602023e-08
A16: Oil contaminated solid waste | C16: R13 | E16: 0 | G16: 4.9 | I16: =IF((E16+G16)>0,(E16+G16)/'Operational Data'!$G$21, "-") -> 7.325012478e-06
A17: Spent ion exchange resin | C17: D14/R13 | E17: 0.04 | G17: 0.533 | I17: =IF((E17+G17)>0,(E17+G17)/'Operational Data'!$G$21, "-") -> 8.565779898e-07
A18: Waste Electronic and Electrical Equipment | C18: R13 | E18: 0 | G18: 0.1 | I18: =IF((E18+G18)>0,(E18+G18)/'Operational Data'!$G$21, "-") -> 1.494900506e-07
A19: Waste hydraulic oil | C19: R13 | E19: 0 | G19: 2.84 | I19: =IF((E19+G19)>0,(E19+G19)/'Operational Data'!$G$21, "-") -> 4.245517436e-06
A20: Activated carbon waste | C20: D14 | E20: 0.25 | G20: 0 | I20: =IF((E20+G20)>0,(E20+G20)/'Operational Data'!$G$21, "-") -> 3.737251264e-07
A21: Total Hazardous Waste | E21: =SUM(E11:F20) -> 1096.91 | G21: =SUM(G11:H20) -> 26195.513 | I21: =IF((E21+G21)>0,(E21+G21)/'Operational Data'!$G$21, "-") -> 0.04079945694
A23: 2) Non-Hazardous Wastes
A24: IBA | C24: R5 | E24: 0 | G24: 124795 | I24: =IF((E24+G24)>0,(E24+G24)/'Operational Data'!$G$21, "-") -> 0.1865561086
A25: Ferrous Metal | C25: R4 | E25: 0 | G25: 5062.66 | I25: =IF((E25+G25)>0,(E25+G25)/'Operational Data'!$G$21, "-") -> 0.007568172994
A26: Dry Mixed Recyclables | C26: R13 | E26: 0 | G26: 2.14 | I26: =IF((E26+G26)>0,(E26+G26)/'Operational Data'!$G$21, "-") -> 3.199087082e-06
A27: General Waste | C27: R13 | E27: 0 | G27: 28.9 | I27: =IF((E27+G27)>0,(E27+G27)/'Operational Data'!$G$21, "-") -> 4.320262461e-05
A28: Waste wood | C28: R3 | E28: 0 | G28: 4.06 | I28: =IF((E28+G28)>0,(E28+G28)/'Operational Data'!$G$21, "-") -> 6.069296053e-06
A29: Sewage | C29: D8 | E29: 47.3 | G29: 0 | I29: =IF((E29+G29)>0,(E29+G29)/'Operational Data'!$G$21, "-") -> 7.070879392e-05
A30: Cement | C30: D14 | E30: 22 | G30: 0 | I30: =IF((E30+G30)>0,(E30+G30)/'Operational Data'!$G$21, "-") -> 3.288781113e-05
A31: Oversized unburned material | C31: R13 | E31: 0 | G31: 509.72 | I31: =IF((E31+G31)>0,(E31+G31)/'Operational Data'!$G$21, "-") -> 0.0007619806858
A32: Total Non-Hazardous Waste | E32: =SUM(E24:F31) -> 69.3 | G32: =SUM(G24:H31) -> 130402.48 | I32: =IF((E32+G32)>0,(E32+G32)/'Operational Data'!$G$21, "-") -> 0.1950423299
A33: TOTAL WASTE | E33: =+E32+E21 -> 1166.21 | G33: =+G32+G21 -> 156597.993 | I33: =IF((E33+G33)>0,(E33+G33)/'Operational Data'!$G$21, "-") -> 0.2358417868
A35: Operator’s comments :
A40: =+A1 -> 2021 | B40: Annual Reporting of Water and Other Raw Material Usage
A41: Raw Material | E41: Usage | G41: Unit | H41: Specific Useage | J41: Unit
A42: Mains Water | E42: =+'Operational Data'!G55 -> 72391 | G42: m3 | H42: =IF(E42>0,E42/'Operational Data'!$G$21,"-") -> 0.1082173425 | J42: m3/te
A43: Total Water | E43: =+'Operational Data'!G56+'Operational Data'!G55 -> 156367.71 | G43: m3 | H43: =IF(E43>0,E43/'Operational Data'!$G$21,"-") -> 0.2337541688 | J43: m3/te
A44: Urea / Ammonia | E44: =+'Operational Data'!G57 -> 242608 | G44: kg | H44: =IF(E44>0,E44/'Operational Data'!$G$21,"-") -> 0.3626748219 | J44: kg/te
A45: Activated Carbon | E45: =+'Operational Data'!G58 -> 257141 | G45: kg | H45: =IF(E45>0,E45/'Operational Data'!$G$21,"-") -> 0.3844002109 | J45: kg/te
A46: Lime / hydrated lime / Sodium Bicarb. | E46: =+'Operational Data'!G59 -> 12459330 | G46: kg | H46: =IF(E46>0,E46/'Operational Data'!$G$21,"-") -> 18.62545872 | J46: kg/te
A48: Operator’s comments :
A52: =+A40 -> 2021 | B52: Annual Reporting of other performance indicators
A53: Parameter | C53: Results by Line
C54: A1 | D54: A2 | E54: A3 | F54: A4 | G54: A5 | I54: Turbine 1 | J54: Turbine 2
A55: Operating hours for the year, hours | C55: 8384 | D55: 8521 | I55: 8519
A56: Number of periods of abnormal operation, qty. | C56: 0 | D56: 1
A57: Cumulative hours of abnormal operation for this year, hours | C57: 0 | D57: 0.5
A59: Operator’s comments :
A63: Signed: | G63: Date:

Sheet Energy Form 1
A1: =+'Cover Page'!C39 -> 2021 | B1: Annual Reporting of Energy Usage/Export
A3: =+'Cover Page'!B31 -> Permit EPR/XP3833DK | F3: Operator: | G3: =+'Cover Page'!B37:I37 -> 0
A5: Facility: | B5: =+'Cover Page'!B33:I33 -> enfinium Ferrybridge 2 Ltd | F5: Form: | G5: Energy 1
A7: Reporting Period from: | D7: =+'Perf. Form 1'!D6:E6 -> 2021-01-01 | F7: to: | G7: =+'Perf. Form 1'!G6:H6 -> 2021-12-31
A9: Energy Source | D9: Energy Usage | F9: Unit | G9: Specific Useage (KWh/tonne incinerated
A10: Electricity Produced | D10: =+'Operational Data'!G24 -> 677529.2 | F10: MWh | G10: =+'Operational Data'!H24 -> 1012.838744
A11: Electricity Imported | D11: =+'Operational Data'!G27 -> 342.635 | F11: MWh | G11: =+'Operational Data'!H27 -> 0.5122052348
A12: Electricity Exported | D12: =+'Operational Data'!G25 -> 619407.9 | F12: MWh | G12: =+'Operational Data'!H25 -> 925.9531829
A13: Gas Oil | D13: =+'Operational Data'!G60*0.85/1000 -> 366.2276349 | F13: tonnes | G13: =+'Operational Data'!H60 -> 644.0869136
A14: Steam/hot water exported | D14: =+'Operational Data'!G30 -> 0 | F14: GWh | G14: =+'Operational Data'!H30 -> -
A18: Operator’s comments :
A19: Review of Combined Heat and Power (CHP) options. It is a permit requirement that the practicability of CHP options are reviewed at least every two years. Ferrybridge 2 is designed to be able to export the steam generated on site to provide heating to offtakers such as residential heating schemes or for industrial/commercial purposes. Given the location of the Ferrybridge 2 plant, there are currently no schemes in the local area that would benefit from the Ferrybridge 2 heat generation. A review meeting on 07/09/2020 confirmed that there were no discussions taking place with any potental heat offtakers. The sale of the SSE owned Ferrybridge C Power Station site will provide the best opportunity for potential heat offtakers to utilise the steam produced at Ferrybridge 2 and that an industrial offtaker would be most likely given the surrounding industrial land use. It is unlikely that a residential-type development would be permitted at such a location and therefore this limits the potential for heat offtakers. In addition, the existing commitments to the Capacity Market binds Ferrybridge 2 to the next 3-years ahead and this would need to be factored into any proposal for heat supply. In summary, Ferrybridge 2 has the potential to offload heat however the lack of viable schemes at present prevents this from being fully utilised.
A29: Signed: | G29: Date:

Sheet Permit Compliance
A1: =+'Cover Page'!$B$29 -> Annual Performance Report 2021 | E1: =+'Cover Page'!$B$33 -> enfinium Ferrybridge 2 Ltd
A3: Summary of Permit Compliance
A5: Compliance with permit limits for continuously monitored pollutants
A7: The plant met its emission limits as shown in the table below:
A8: Substance | C8: Percentage time compliant during operation
C9: Half-hourly limit | F9: Daily limit
A10: Particulates | C10: 1 | F10: 1
A11: Oxides of nitrogen | C11: 1 | F11: 1
A12: Sulphur dioxide | C12: 1 | F12: 1
A13: Carbon monoxide | C13: 100% or 100% 95% of 10-min averages | F13: 1
A14: Total organic carbon | C14: 1 | F14: 1
A15: Hydrogen chloride | C15: 1 | F15: 1
A18: Summary of any notifications or non-compliances under the permit
A19: Date | B19: Summary of notification or non-compliance [including Line/Reference] | E19: Reason | H19: Measures taken to prevent reoccurrence
A20: 2021-05-14 | B20: Line A1 exceedance of dust 1/2 hourly emission limit. | E20: Hopper flap 3 went beyond the closure limit sensor preventing signal being sent from the DCS to the CEMS to stop reporting emissions. | H20: Closure limits tested and adjusted to prevent recurrence.
A21: 2021-10-24 | B21: Line A2 exceedance of dust 1/2 hourly emission limit. | E21: Dust spike occurred after hopper flaps closed and waste ceased being charged to grate. | H21: Decision pending.
A23: Summary of any complaints received and actions to taken to resolve them.
A24: Date | B24: Summary of complaint [including Line/Reference] | E24: Reason * | H24: Measures taken to prevent reoccurrence
A25: 2021-01-21 | B25: External complaint of odour via the Environment Agency. | E25: Unsubstantiated | H25: Discussed at morning meeting, investigated and found to be unsubstantiated.
A26: 2021-02-04 | B26: External complaint of odour burnt rubbish/potato smell received from Environment Agency. | E26: Unsubstantiated | H26: Discussed at morning meeting, investigation did not identify any potential sources, complaint unsubstantiated.
A27: 2021-04-09 | B27: External complaint received from resident of Ferrybridge with allegation of dust from site affecting his property. | E27: Unsubstantiated | H27: Discussed at morning meeting, investigated and found to be unsubstantiated. Email sent to complainant advising of outcome.
A28: 2021-05-18 | B28: External complaint about vehicle parking on Old Great North Road before 7am. | E28: Substantiated | H28: Investigation identified offending vehicle and driver was given permanent ban due to aggressive attitude.
A29: 2021-05-20 | B29: External complaint from resident of Ferrybridge about odour from site. | E29: Unsubstantiated | H29: Discussed at morning meeting, investigated and found to be unsubstantiated.
A30: 2021-06-10 | B30: External complaint from the local community group about RDF delivery vehicle with nets in a poor condition and plastic waste hanging from the sides of the trailers. | E30: Unsubstantiated | H30: Discussed at morning meeting, fuel supplier and haulier informed.
A31: 2021-06-18 | B31: External complaint about odour received directly from the Environment Agency. | E31: Unsubstantiated | H31: Discussed at morning meeting, investigated and found to be unsubstantiated.
A32: 2021-07-14 | B32: External complaint from local resident about poor condition of netting on RDF delivery vehicle. | E32: Unsubstantiated | H32: Discussed at morning meeting, fuel supplier and haulier informed, fleet survey recommended.
A33: 2021-09-03 | B33: External complaint about waste streamers hanging off RDF delivery vehicles. | E33: Unsubstantiated | H33: Discussed at morning meeting, no specific vehicle identified but companies notified.
A34: 2021-11-16 | B34: External complaint of RDF delivery driver driving through weight restricted area of Ferrybridge. | E34: Substantiated | H34: Discussed at daily meeting, fuel supplier notified, driver received 1 month ban.
E35: * including whether substantiated by the operator or the EA

Sheet Improvements
A1: =+'Cover Page'!$B$29 -> Annual Performance Report 2021 | E1: =+'Cover Page'!$B$33 -> enfinium Ferrybridge 2 Ltd
A3: Summary of Plant Improvements
A5: Summary of any efficiency improvements that have been completed within the year.
A6: Energy efficient light sensors installed in the FGT area.
A16: Summary of any permit improvement conditions that have been completed within the year and the resulting environmental benefits.
A17: IC2 - Particle size distribution. IC4 - Residence time and temperature. IC6 - Component metals assessment. IC7a and IC7b - QAL1, QAL2, QAL3.
A27: Summary of any changes to the plant or operating techniques which required a variation to the permit and a summary of the resulting environmental impact.
A28: None
A38: Summary of any other improvements made to the plant or planned to be made and a summary of the resulting environmental benefits.
A39: None

Sheet Public Liasion
A1: =+'Cover Page'!$B$29 -> Annual Performance Report 2021 | E1: =+'Cover Page'!$B$33 -> enfinium Ferrybridge 2 Ltd
A3: Details of Public & Stakeholder Liasion
A5: Summary of events held during the reporting year.
A6: Date | C6: Description
A7: n/a | C7: All community liaison group meetings cancelled due to impacts of covid-19.
A16: List of events planned for next year
A17: Date | C17: Description
A18: April, July, October 2022, January 2023 | C18: Quarterly Community Liaison Group meetings (dependant on covid-19 restrictions)
A20: April, October 2022 | C20: Transport Liaison Group Meetings (dependant on covid-19 restrictions)
A29: If you wish to be involved in the public liasion programme, please contact John Warren, Environmental Officer, john.warren@multifuelenergy.com

Sheet Residue Quality
A1: =+'Cover Page'!$B$29 -> Annual Performance Report 2021 | E1: =+'Cover Page'!$B$33 -> enfinium Ferrybridge 2 Ltd
A3: Residue Quality Monitoring Requirements
A5: Summary of monitoring undertaken and compliance
A6: Monthly IBA hazard assessments and annual full hazardous property assessments, quarterly IBA and APC residue compliance monitoring, annual characterisation of IBA and APC residue. All carried out and reported by WRc.
A13: Commentary on any specific events
A14: Date & Event | C14: Description
A15: October 2021 - IBA and APC Annual Characterisation Report | C15: Results of the annual characterisation of IBA and APC residues from Ferrybridge 2, including a full hazardous property assessment of IBA as required by the ESA Protocol 2018.
A27: Residue Quality Monitoring Results
A28: Parameter (unit) | C28: Limit | D28: Normal Operation
D29: Bottom ash | F29: APC Residues
A30: Loss on Ignition (%) | C30: <5% | D30: 3.3
A31: ToC (%) | C31: <3% | D31: 0.4
A32: No. of Assessments Undertaken | C32: --- | D32: 4 | F32: 4
A33: No. of Hazardous Assessments | C33: --- | D33: 24
A35: Comments :
A36: Loss on Ignition and ToC results taken from October 2021 report. No. of hazardous assessments over 2 lines.

Sheet Water
A1: =+'Cover Page'!$B$29 -> Annual Performance Report 2021 | E1: =+'Cover Page'!$B$33 -> enfinium Ferrybridge 2 Ltd
A3: Emissions to Water
A5: Summary of monitoring undertaken and compliance
A6: Frequent sampling and analysis of attenuation pond water, tested for pH and conductivity, odour and appearance prior to discharge to Fryston Beck.
A11: Commentary on any specific events
A12: Date & Event | C12: Description
A20: Emissions to Water / Sewer
A21: Parameter | D21: Monitoring Frequency | G21: Limit | H21: Target | I21: Max. | J21: Average
A22: No parameters set in permit | D22: None | G22: None | H22: None | I22: None | J22: None

Sheet Air (periodic)
A1: =+'Cover Page'!$B$29 -> Annual Performance Report 2021 | E1: =+'Cover Page'!$B$33 -> enfinium Ferrybridge 2 Ltd
A3: Emissions to Air (periodically monitored)
A5: Summary of monitoring undertaken, standards used and compliance | J5: Notes:
A6: Bi-annual monitoring undertaken in June 2021 and September/October 2021. Standards used include EN 14385, MID 14385, EN 1948, ISO 11338, ISO 15713, EN 14789, TGN M22 and EN 16911-1 (MID). All parameters tested demonstrate compliance against the relevant emission limit values. | J6: Template may require adjustment for any bespoke monitoring requirements of permit.
A9: Results of emissions to air that are periodically monitored
A10: Substance | C10: Ref. Period | D10: Emission Limit Value | F10: Average | J10: User to add additional tables as necessary, depending on whether quarterly or bi-annual reporting is required for the compliance year
F11: A1 | G11: A2
A12: Hydrogen fluoride | C12: 1 hr | D12: 2 mg/m3 | F12: < 0.02 | G12: < 0.04
A13: Cd and Th and their compounds | C13: 6-8hrs | D13: 0.05 mg/m3 | F13: 0.001 | G13: 0.001
A14: Hg and its compounds | C14: 6-8hrs | D14: 0.05 mg/m3 | F14: 0.003 | G14: 0.005
A15: Sb, As, Pb, Cr, Co, Cu, Mn, Ni, V and their compounds | C15: 6-8hrs | D15: 0.5 mg/m3 | F15: 0.014 | G15: 0.02
A16: Dioxins & Furans (I-TEQ) | C16: 6-8hrs | D16: 0.1 ng/m3 | F16: 0.01 | G16: 0.009
A17: PCBs (WHO-TEQ Humans / Mammals) | C17: 6-8hrs | D17: None set ng/m3 | F17: 0.00105 | G17: 0.0008
A18: PCBs (WHO-TEQ Fish) | C18: 6-8hrs | D18: None set ng/m3 | F18: 5e-05 | G18: 4e-05
A19: PCBs (WHO-TEQ Birds) | C19: 6-8hrs | D19: None set ng/m3 | F19: 0.00277 | G19: 0.00193
A20: Dioxins & Furans (WHO-TEQ Humans / Mammals) | C20: 6-8hrs | D20: None set ng/m3 | F20: 0.009 | G20: 0.008
A21: Dioxins & Furans (WHO-TEQ Fish) | C21: 6-8hrs | D21: None set ng/m3 | F21: 0.01 | G21: 0.009
A22: Dioxins & Furans (WHO-TEQ Birds) | C22: 6-8hrs | D22: None set ng/m3 | F22: 0.02 | G22: 0.017
A23: Anthanthrene | C23: 6-8hrs | D23: None set µg/m3 | F23: < 0.0011 | G23: < 0.0012
A24: Benzo(a)anthracene | C24: 6-8hrs | D24: None set µg/m3 | F24: < 0.0011 | G24: < 0.0012
A25: Benzo(a)pyrene | C25: 6-8hrs | D25: None set µg/m3 | F25: < 0.0011 | G25: < 0.0012
A26: Benzo(b)fluoranthene | C26: 6-8hrs | D26: None set µg/m3 | F26: < 0.0011 | G26: < 0.0012
A27: Benzo(b)naptho(2,1-d) thiophene | C27: 6-8hrs | D27: None set µg/m3 | F27: < 0.0011 | G27: 0.0021
A28: Benzo(c)phenanthrene | C28: 6-8hrs | D28: None set µg/m3 | F28: < 0.0011 | G28: < 0.0012
A29: Benzo(ghi)perylene | C29: 6-8hrs | D29: None set µg/m3 | F29: < 0.0011 | G29: < 0.0012
A30: Benzo(k)fluoranthene | C30: 6-8hrs | D30: None set µg/m3 | F30: < 0.0011 | G30: < 0.0012
A31: Cholanthrene | C31: 6-8hrs | D31: None set µg/m3 | F31: < 0.0011 | G31: < 0.0012
A32: Chrysene | C32: 6-8hrs | D32: None set µg/m3 | F32: < 0.0011 | G32: 0.0012
A33: Cyclopenta(cd)pyrene | C33: 6-8hrs | D33: None set µg/m3 | F33: < 0.0011 | G33: < 0.0012
A34: Dibenzo(ai)pyrene | C34: 6-8hrs | D34: None set µg/m3 | F34: < 0.0011 | G34: < 0.0012
A35: Dibenzo(ah)anthracene | C35: 6-8hrs | D35: None set µg/m3 | F35: < 0.0011 | G35: < 0.0012
A36: Fluoranthene | C36: 6-8hrs | D36: None set µg/m3 | F36: 0.0055 | G36: 0.0069
A37: Indeno(123-cd) pyrene | C37: 6-8hrs | D37: None set µg/m3 | F37: < 0.0011 | G37: < 0.0012
A38: Naphthalene | C38: 6-8hrs | D38: None set µg/m3 | F38: 0.164 | G38: 0.1411
A39: Comments :
A40: Testing carried out between 3rd and 10th June 2021.
A43: Results of emissions to air that are periodically monitored
A44: Substance | C44: Ref. Period | D44: Emission Limit Value | F44: Average
F45: A1 | G45: A2
A46: Hydrogen fluoride | C46: 1 hr | D46: 2 mg/m3 | F46: < 0.03 | G46: < 0.03
A47: Cd and Th and their compounds | C47: 6-8hrs | D47: 0.05 mg/m3 | F47: 0.001 | G47: < 0.0005
A48: Hg and its compounds | C48: 6-8hrs | D48: 0.05 mg/m3 | F48: 0.004 | G48: 0.014
A49: Sb, As, Pb, Cr, Co, Cu, Mn, Ni, V and their compounds | C49: 6-8hrs | D49: 0.5 mg/m3 | F49: 0.015 | G49: 0.009
A50: Dioxins & Furans (I-TEQ) | C50: 6-8hrs | D50: 0.1 ng/m3 | F50: 0.016 | G50: 0.012
A51: PCBs (WHO-TEQ Humans / Mammals) | C51: 6-8hrs | D51: None set ng/m3 | F51: 0.00092 | G51: 0.00093
A52: PCBs (WHO-TEQ Fish) | C52: 6-8hrs | D52: None set ng/m3 | F52: 4e-05 | G52: 4e-05
A53: PCBs (WHO-TEQ Birds) | C53: 6-8hrs | D53: None set ng/m3 | F53: 0.00182 | G53: 0.00184
A54: Dioxins & Furans (WHO-TEQ Humans / Mammals) | C54: 6-8hrs | D54: None set ng/m3 | F54: 0.016 | G54: 0.012
A55: Dioxins & Furans (WHO-TEQ Fish) | C55: 6-8hrs | D55: None set ng/m3 | F55: 0.016 | G55: 0.012
A56: Dioxins & Furans (WHO-TEQ Birds) | C56: 6-8hrs | D56: None set ng/m3 | F56: 0.023 | G56: 0.017
A57: Anthanthrene | C57: 6-8hrs | D57: None set µg/m3 | F57: < 0.001 | G57: < 0.001
A58: Benzo(a)anthracene | C58: 6-8hrs | D58: None set µg/m3 | F58: 0.044 | G58: 0.038
A59: Benzo(a)pyrene | C59: 6-8hrs | D59: None set µg/m3 | F59: 0.005 | G59: 0.004
A60: Benzo(b)fluoranthene | C60: 6-8hrs | D60: None set µg/m3 | F60: 0.01 | G60: 0.009
A61: Benzo(b)naptho(2,1-d) thiophene | C61: 6-8hrs | D61: None set µg/m3 | F61: 0.012 | G61: 0.009
A62: Benzo(c)phenanthrene | C62: 6-8hrs | D62: None set µg/m3 | F62: 0.011 | G62: 0.009
A63: Benzo(ghi)perylene | C63: 6-8hrs | D63: None set µg/m3 | F63: 0.003 | G63: 0.002
A64: Benzo(k)fluoranthene | C64: 6-8hrs | D64: None set µg/m3 | F64: 0.005 | G64: 0.005
A65: Cholanthrene | C65: 6-8hrs | D65: None set µg/m3 | F65: < 0.001 | G65: < 0.001
A66: Chrysene | C66: 6-8hrs | D66: None set µg/m3 | F66: 0.039 | G66: 0.033
A67: Cyclopenta(cd)pyrene | C67: 6-8hrs | D67: None set µg/m3 | F67: 0.003 | G67: 0.002
A68: Dibenzo(ai)pyrene | C68: 6-8hrs | D68: None set µg/m3 | F68: < 0.001 | G68: < 0.001
A69: Dibenzo(ah)anthracene | C69: 6-8hrs | D69: None set µg/m3 | F69: < 0.001 | G69: < 0.001
A70: Fluoranthene | C70: 6-8hrs | D70: None set µg/m3 | F70: 0.991 | G70: 0.881
A71: Indeno(123-cd) pyrene | C71: 6-8hrs | D71: None set µg/m3 | F71: 0.002 | G71: 0.001
A72: Naphthalene | C72: 6-8hrs | D72: None set µg/m3 | F72: 1.22 | G72: 0.71
A73: Comments :
A74: Testing carried out between 30th September and 6th October 2021.

Sheet Air (CEMS)
A1: =+'Cover Page'!$B$29 -> Annual Performance Report 2021
A3: Emissions to Air (continously monitored)
J4: Notes:
A5: Summary of monitoring undertaken, standards used and compliance | J5: Template may require adjustment for any bespoke monitoring requirements of permit
A6: Continuous emissions monitoring of Oxides of Nitrogen, Particulates, Total Organic Carbon, Hydrogen Chloride, Sulphur Dioxide, Carbon Monoxide and Ammonia to EN14181. Instruments used PCME QAL 181 and Environement SA MIR FT multigas analyser. All results demonstrate 100% compliance with the emission limit values.
A9: Results of emissions to air that are continuously monitored
A10: Substance | B10: Reference Period | C10: Emission Limit Value | D10: A1 | F10: A2
D11: Max. | E11: Avg. | F11: Max. | G11: Avg.
A12: Oxides of nitrogen | B12: Daily mean | C12: 180 mg/m3 | D12: =NOx!O19 -> 178 | E12: =NOx!N19 -> 167.975 | F12: =NOx!O34 -> 172 | G12: =NOx!N34 -> 168.9283333
B13: ½ hourly mean | C13: 400 mg/m3 | D13: =NOx!M19 -> 791 | E13: =NOx!L19 -> 168 | F13: =NOx!M34 -> 244 | G13: =NOx!L34 -> 168.9166667
A14: Particulates | B14: Daily mean | C14: 10 mg/m3 | D14: =Particulates!O19 -> 13 | E14: =Particulates!N19 -> 3.255 | F14: =Particulates!O34 -> 6 | G14: =Particulates!N34 -> 1.838333333
B15: ½ hourly mean | C15: 30 mg/m3 | D15: =Particulates!M19 -> 99 | E15: =Particulates!L19 -> 3.25 | F15: =Particulates!M34 -> 129 | G15: =Particulates!L34 -> 1.75
A16: Total Organic Carbon | B16: Daily mean | C16: 10 mg/m3 | D16: =TOC!O19 -> 1 | E16: =TOC!N19 -> 0.2983333333 | F16: =TOC!O34 -> 1 | G16: =TOC!N34 -> 0.3775
B17: ½ hourly mean | C17: 20 mg/m3 | D17: =TOC!M19 -> 3 | E17: =TOC!L19 -> 0 | F17: =TOC!M34 -> 7 | G17: =TOC!L34 -> 0
A18: Hydrogen chloride | B18: Daily mean | C18: 10 mg/m3 | D18: =HCl!O19 -> 7 | E18: =HCl!N19 -> 4.083333333 | F18: =HCl!O34 -> 7 | G18: =HCl!N34 -> 3.99
B19: ½ hourly mean | C19: 60 mg/m3 | D19: =HCl!M19 -> 39 | E19: =HCl!L19 -> 4.083333333 | F19: =HCl!M34 -> 14 | G19: =HCl!L34 -> 4
A20: Sulphur dioxide | B20: Daily mean | C20: 50 mg/m3 | D20: ='SO2'!O19 -> 2 | E20: ='SO2'!N19 -> 0.3241666667 | F20: ='SO2'!O34 -> 4 | G20: ='SO2'!N34 -> 0.9125
B21: ½ hourly mean | C21: 200 mg/m3 | D21: ='SO2'!M19 -> 51 | E21: ='SO2'!L19 -> 0.1666666667 | F21: ='SO2'!M34 -> 19 | G21: ='SO2'!L34 -> 0.8333333333
A22: Carbon monoxide | B22: Daily mean | C22: 50 mg/m3 | D22: ='CO 95% 10 min'!Q19 -> 6 | E22: ='CO 95% 10 min'!P19 -> 1.78 | F22: ='CO 95% 10 min'!Q34 -> 6 | G22: ='CO 95% 10 min'!P34 -> 1.7925
B23: 95%ile 10-min avg * | C23: 150 mg/m3 * | D23: ='CO 95% 10 min'!M19 -> 6.083333333 | E23: ='CO 95% 10 min'!N19 -> 1.833333333 | F23: ='CO 95% 10 min'!M34 -> 6 | G23: ='CO 95% 10 min'!N34 -> 1.833333333
A24: Ammonia | B24: Daily mean | C24: No limit set | D24: ='NH3'!O19 -> 2 | E24: ='NH3'!N19 -> 0.09416666667 | F24: ='NH3'!O34 -> 0 | G24: ='NH3'!N34 -> 0.008333333333
A25: * = delete or amend as appropriate | B25: ½ hourly mean | C25: 30 mg/m3 | D25: ='NH3'!M19 -> 11 | E25: ='NH3'!L19 -> 0 | F25: ='NH3'!M34 -> 3 | G25: ='NH3'!L34 -> 0
A26: Comments :

Sheet NOx
A1: =+'Cover Page'!$B$29 -> Annual Performance Report 2021 | E1: =+'Cover Page'!$B$33 -> enfinium Ferrybridge 2 Ltd
A3: Monitoring of Oxides of Nitrogen emissions | D3: Whole Installation | G3: See Notes in Cell Q3 | J3: =+A3 -> Monitoring of Oxides of Nitrogen emissions | N3: Per Combustion Line | Q3: Notes:
Q4: User to add logic to complete Whole installation, Table A5:G18. From the data in Per Combustion Line, Table J6:O79, subject to No. of lines installed
A5: mg/Nm3 | B5: 1/2 Hourly Reference Periods | E5: Daily Reference Periods
A6: =+'Cover Page'!C39 -> 2021 | B6: 1/2 hourly NOx ELV | C6: Monthly 1/2 hourly mean | D6: Highest 1/2 hourly maximum | E6: Daily NOx ELV | F6: Monthly daily mean | G6: Highest daily maximum | J6: =+A6 -> 2021 | K6: mg/Nm3 | L6: Monthly 1/2 hourly mean | M6: Monthly 1/2 hourly maximum | N6: Monthly daily mean | O6: Monthly daily maximum
A7: Jan | B7: 400 | C7: =AVERAGE(L7,L22) -> 164.5 | D7: =MAX(M7,M22) -> 202 | E7: 180 | F7: =AVERAGE(N7,N22) -> 164.045 | G7: =MAX(O7,O22) -> 171 | J7: A1 | K7: Jan | L7: 159 | M7: 187 | N7: 158.52 | O7: 169
A8: Feb | B8: 400 | C8: =AVERAGE(L8,L23) -> 165 | D8: =MAX(M8,M23) -> 211 | E8: 180 | F8: =AVERAGE(N8,N23) -> 165.105 | G8: =MAX(O8,O23) -> 170 | K8: Feb | L8: 161 | M8: 211 | N8: 161.4 | O8: 167
A9: Mar | B9: 400 | C9: 167.5 | D9: 192 | E9: 180 | F9: 167.08 | G9: 171 | K9: Mar | L9: 165 | M9: 192 | N9: 164.63 | O9: 171 | Q9: Whole Installation table A5:G18:
A10: Apr | B10: 400 | C10: 170 | D10: 203 | E10: 180 | F10: 169.825 | G10: 172 | K10: Apr | L10: 170 | M10: 199 | N10: 169.86 | O10: 171 | Q10: Mean: for 1/2 hourly and daily periods calculate mean of values across all operational combustion lines for the month
A11: May | B11: 400 | C11: 170.5 | D11: 791 | E11: 180 | F11: 170.585 | G11: 178 | K11: May | L11: 171 | M11: 791 | N11: 170.71 | O11: 178
A12: Jun | B12: 400 | C12: 170 | D12: 219 | E12: 180 | F12: 169.935 | G12: 171 | K12: Jun | L12: 170 | M12: 199 | N12: 170.17 | O12: 171
A13: Jul | B13: 400 | C13: 169 | D13: 196 | E13: 180 | F13: 169.065 | G13: 171 | K13: Jul | L13: 170 | M13: 196 | N13: 170 | O13: 171 | Q13: Maximum: for 1/2 hourly and daily periods use the highest value across all operational combustion lines for the month
A14: Aug | B14: 400 | C14: 169 | D14: 196 | E14: 180 | F14: 169.27 | G14: 171 | K14: Aug | L14: 170 | M14: 196 | N14: 170.13 | O14: 171
A15: Sep | B15: 400 | C15: 168 | D15: 211 | E15: 180 | F15: 168.115 | G15: 174 | K15: Sep | L15: 170 | M15: 211 | N15: 170.28 | O15: 174
A16: Oct | B16: 400 | C16: 169 | D16: 217 | E16: 180 | F16: 168.9 | G16: 171 | K16: Oct | L16: 170 | M16: 201 | N16: 169.88 | O16: 171
A17: Nov | B17: 400 | C17: 169.5 | D17: 221 | E17: 180 | F17: 169.605 | G17: 171 | K17: Nov | L17: 170 | M17: 195 | N17: 169.8 | O17: 171
A18: Dec | B18: 400 | C18: 169.5 | D18: 244 | E18: 180 | F18: 169.89 | G18: 174 | K18: Dec | L18: 170 | M18: 209 | N18: 170.32 | O18: 174
K19: Annual | L19: =AVERAGE(L7:L18) -> 168 | M19: =MAX(M7:M18) -> 791 | N19: =AVERAGE(N7:N18) -> 167.975 | O19: =MAX(O7:O18) -> 178
J21: =+A6 -> 2021 | K21: mg/Nm3 | L21: Monthly 1/2 hourly mean | M21: Monthly 1/2 hourly maximum | N21: Monthly daily mean | O21: Monthly daily maximum
J22: A2 | K22: Jan | L22: 170 | M22: 202 | N22: 169.57 | O22: 171
K23: Feb | L23: 169 | M23: 190 | N23: 168.81 | O23: 170
K24: Mar | L24: 170 | M24: 192 | N24: 169.53 | O24: 171
K25: Apr | L25: 170 | M25: 203 | N25: 169.79 | O25: 172
K26: May | L26: 170 | M26: 199 | N26: 170.46 | O26: 71
K27: Jun | L27: 170 | M27: 219 | N27: 169.7 | O27: 171
K28: Jul | L28: 168 | M28: 196 | N28: 168.13 | O28: 170
K29: Aug | L29: 168 | M29: 196 | N29: 168.41 | O29: 171
K30: Sep | L30: 166 | M30: 195 | N30: 165.95 | O30: 171
K31: Oct | L31: 168 | M31: 217 | N31: 167.92 | O31: 171
K32: Nov | L32: 169 | M32: 221 | N32: 169.41 | O32: 170
K33: Dec | L33: 169 | M33: 244 | N33: 169.46 | O33: 171
K34: Annual | L34: =AVERAGE(L22:L33) -> 168.9166667 | M34: =MAX(M22:M33) -> 244 | N34: =AVERAGE(N22:N33) -> 168.9283333 | O34: =MAX(O22:O33) -> 172
A48: Comments :

Sheet SO2
A1: =+'Cover Page'!$B$29 -> Annual Performance Report 2021 | E1: =+'Cover Page'!$B$33 -> enfinium Ferrybridge 2 Ltd
A3: Monitoring of Sulphur dioxide emissions | D3: Whole Installation | G3: See Notes in Cell Q3 | J3: =+A3 -> Monitoring of Sulphur dioxide emissions | N3: Per Combustion Line | Q3: Notes:
Q4: User to add logic to complete Whole installation, Table A5:G18. From the data in Per Combustion Line, Table J6:O79, subject to No. of lines installed
A5: mg/Nm3 | B5: 1/2 Hourly Reference Periods | E5: Daily Reference Periods
A6: =+'Cover Page'!C39 -> 2021 | B6: 1/2 hourly SO2 ELV | C6: Monthly 1/2 hourly mean | D6: Highest 1/2 hourly maximum | E6: Daily SO2 ELV | F6: Monthly daily mean | G6: Highest daily maximum | J6: =+A6 -> 2021 | K6: mg/Nm3 | L6: Monthly 1/2 hourly mean | M6: Monthly 1/2 hourly maximum | N6: Monthly daily mean | O6: Monthly daily maximum
A7: Jan | B7: 200 | C7: =AVERAGE(L7,L22) -> 0.5 | D7: =MAX(M7,M22) -> 5 | E7: 50 | F7: =AVERAGE(N7,N22) -> 0.27 | G7: 0 | J7: A1 | K7: Jan | L7: 1 | M7: 3 | N7: 0.53 | O7: 1
A8: Feb | B8: 200 | C8: =AVERAGE(L8,L23) -> 1 | D8: =MAX(M8,M23) -> 51 | E8: 50 | F8: =AVERAGE(N8,N23) -> 1.16 | G8: 1 | K8: Feb | L8: 1 | M8: 51 | N8: 1 | O8: 2
A9: Mar | B9: 200 | C9: 0.5 | D9: 12 | E9: 50 | F9: 0.715 | G9: 2 | K9: Mar | L9: 0 | M9: 12 | N9: 0.38 | O9: 1 | Q9: Whole Installation table A5:G18:
A10: Apr | B10: 200 | C10: 0.5 | D10: 6 | E10: 50 | F10: 0.585 | G10: 3 | K10: Apr | L10: 0 | M10: 6 | N10: 0.31 | O10: 1 | Q10: Mean: for 1/2 hourly and daily periods calculate mean of values across all operational combustion lines for the month
A11: May | B11: 200 | C11: 1 | D11: 24 | E11: 50 | F11: 1.225 | G11: 4 | K11: May | L11: 0 | M11: 24 | N11: 0.24 | O11: 2
A12: Jun | B12: 200 | C12: 1 | D12: 9 | E12: 50 | F12: 0.985 | G12: 5 | K12: Jun | L12: 0 | M12: 9 | N12: 0.07 | O12: 0
A13: Jul | B13: 200 | C13: 0.5 | D13: 38 | E13: 50 | F13: 0.645 | G13: 6 | K13: Jul | L13: 0 | M13: 38 | N13: 0.26 | O13: 1 | Q13: Maximum: for 1/2 hourly and daily periods use the highest value across all operational combustion lines for the month
A14: Aug | B14: 200 | C14: 0.5 | D14: 31 | E14: 50 | F14: 0.485 | G14: 7 | K14: Aug | L14: 0 | M14: 31 | N14: 0.11 | O14: 1
A15: Sep | B15: 200 | C15: 0 | D15: 19 | E15: 50 | F15: 0.285 | G15: 8 | K15: Sep | L15: 0 | M15: 7 | N15: 0.11 | O15: 1
A16: Oct | B16: 200 | C16: 0.5 | D16: 14 | E16: 50 | F16: 0.53 | G16: 9 | K16: Oct | L16: 0 | M16: 6 | N16: 0.47 | O16: 1
A17: Nov | B17: 200 | C17: 0 | D17: 5 | E17: 50 | F17: 0.335 | G17: 10 | K17: Nov | L17: 0 | M17: 5 | N17: 0.37 | O17: 1
A18: Dec | B18: 200 | C18: 0 | D18: 5 | E18: 50 | F18: 0.2 | G18: 11 | K18: Dec | L18: 0 | M18: 3 | N18: 0.04 | O18: 0
K19: Annual | L19: =AVERAGE(L7:L18) -> 0.1666666667 | M19: =MAX(M7:M18) -> 51 | N19: =AVERAGE(N7:N18) -> 0.3241666667 | O19: =MAX(O7:O18) -> 2
J21: =+A6 -> 2021 | K21: mg/Nm3 | L21: Monthly 1/2 hourly mean | M21: Monthly 1/2 hourly maximum | N21: Monthly daily mean | O21: Monthly daily maximum
J22: A2 | K22: Jan | L22: 0 | M22: 5 | N22: 0.01 | O22: 0
K23: Feb | L23: 1 | M23: 9 | N23: 1.32 | O23: 4
K24: Mar | L24: 1 | M24: 7 | N24: 1.05 | O24: 3
K25: Apr | L25: 1 | M25: 3 | N25: 0.86 | O25: 2
K26: May | L26: 2 | M26: 6 | N26: 2.21 | O26: 3
K27: Jun | L27: 2 | M27: 7 | N27: 1.9 | O27: 3
K28: Jul | L28: 1 | M28: 15 | N28: 1.03 | O28: 2
K29: Aug | L29: 1 | M29: 7 | N29: 0.86 | O29: 2
K30: Sep | L30: 0 | M30: 19 | N30: 0.46 | O30: 1
K31: Oct | L31: 1 | M31: 14 | N31: 0.59 | O31: 1
K32: Nov | L32: 0 | M32: 4 | N32: 0.3 | O32: 1
K33: Dec | L33: 0 | M33: 5 | N33: 0.36 | O33: 2
K34: Annual | L34: =AVERAGE(L22:L33) -> 0.8333333333 | M34: =MAX(M22:M33) -> 19 | N34: =AVERAGE(N22:N33) -> 0.9125 | O34: =MAX(O22:O33) -> 4
A48: Comments :

Sheet HCl
A1: =+'Cover Page'!$B$29 -> Annual Performance Report 2021 | E1: =+'Cover Page'!$B$33 -> enfinium Ferrybridge 2 Ltd
A3: Monitoring of Hydrogen Chloride emissions | D3: Whole Installation | G3: See Notes in Cell Q3 | J3: =+A3 -> Monitoring of Hydrogen Chloride emissions | N3: Per Combustion Line | Q3: Notes:
Q4: User to add logic to complete Whole installation, Table A5:G18. From the data in Per Combustion Line, Table J6:O79, subject to No. of lines installed
A5: mg/Nm3 | B5: 1/2 Hourly Reference Periods | E5: Daily Reference Periods
A6: =+'Cover Page'!C39 -> 2021 | B6: 1/2 hourly HCl ELV | C6: Monthly 1/2 hourly mean | D6: Highest 1/2 hourly maximum | E6: Daily HCl ELV | F6: Monthly daily mean | G6: Highest daily maximum | J6: =+A6 -> 2021 | K6: mg/Nm3 | L6: Monthly 1/2 hourly mean | M6: Monthly 1/2 hourly maximum | N6: Monthly daily mean | O6: Monthly daily maximum
A7: Jan | B7: 60 | C7: =AVERAGE(L7,L22) -> 5 | D7: =MAX(M7,M22) -> 10 | E7: 10 | F7: =AVERAGE(N7,N22) -> 4.68 | G7: =MAX(O7,O22) -> 6 | J7: A1 | K7: Jan | L7: 5 | M7: 9 | N7: 4.79 | O7: 6
A8: Feb | B8: 60 | C8: =AVERAGE(L8,L23) -> 4 | D8: =MAX(M8,M23) -> 26 | E8: 10 | F8: 3.96 | G8: =MAX(O8,O23) -> 6 | K8: Feb | L8: 4 | M8: 26 | N8: 4.3 | O8: 6
A9: Mar | B9: 60 | C9: 4.5 | D9: 10 | E9: 10 | F9: 4.42 | G9: 7 | K9: Mar | L9: 5 | M9: 10 | N9: 5 | O9: 7 | Q9: Whole Installation table A5:G18:
A10: Apr | B10: 60 | C10: 3.5 | D10: 10 | E10: 10 | F10: 3.58 | G10: 5 | K10: Apr | L10: 4 | M10: 10 | N10: 3.68 | O10: 5 | Q10: Mean: for 1/2 hourly and daily periods calculate mean of values across all operational combustion lines for the month
A11: May | B11: 60 | C11: 4 | D11: 39 | E11: 10 | F11: 3.89 | G11: 6 | K11: May | L11: 4 | M11: 39 | N11: 4.18 | O11: 5
A12: Jun | B12: 60 | C12: 4 | D12: 10 | E12: 10 | F12: 3.865 | G12: 6 | K12: Jun | L12: 4 | M12: 10 | N12: 3.94 | O12: 6
A13: Jul | B13: 60 | C13: 3.5 | D13: 19 | E13: 10 | F13: 3.225 | G13: 4 | K13: Jul | L13: 4 | M13: 19 | N13: 3.58 | O13: 4 | Q13: Maximum: for 1/2 hourly and daily periods use the highest value across all operational combustion lines for the month
A14: Aug | B14: 60 | C14: 3 | D14: 21 | E14: 10 | F14: 3.385 | G14: 4 | K14: Aug | L14: 3 | M14: 21 | N14: 3.49 | O14: 4
A15: Sep | B15: 60 | C15: 3.5 | D15: 14 | E15: 10 | F15: 3.49 | G15: 5 | K15: Sep | L15: 3 | M15: 9 | N15: 3.24 | O15: 4
A16: Oct | B16: 60 | C16: 5 | D16: 14 | E16: 10 | F16: 5.26 | G16: 7 | K16: Oct | L16: 5 | M16: 10 | N16: 5.35 | O16: 7
A17: Nov | B17: 60 | C17: 4 | D17: 11 | E17: 10 | F17: 4.07 | G17: 6 | K17: Nov | L17: 4 | M17: 8 | N17: 3.69 | O17: 4
A18: Dec | B18: 60 | C18: 4.5 | D18: 11 | E18: 10 | F18: 4.615 | G18: 7 | K18: Dec | L18: 4 | M18: 7 | N18: 3.76 | O18: 5
K19: Annual | L19: =AVERAGE(L7:L18) -> 4.083333333 | M19: =MAX(M7:M18) -> 39 | N19: =AVERAGE(N7:N18) -> 4.083333333 | O19: =MAX(O7:O18) -> 7
J21: =+A6 -> 2021 | K21: mg/Nm3 | L21: Monthly 1/2 hourly mean | M21: Monthly 1/2 hourly maximum | N21: Monthly daily mean | O21: Monthly daily maximum
J22: A2 | K22: Jan | L22: 5 | M22: 10 | N22: 4.57 | O22: 6
K23: Feb | L23: 4 | M23: 7 | N23: 3.62 | O23: 6
K24: Mar | L24: 4 | M24: 7 | N24: 3.84 | O24: 5
K25: Apr | L25: 3 | M25: 7 | N25: 3.48 | O25: 5
K26: May | L26: 4 | M26: 14 | N26: 3.6 | O26: 6
K27: Jun | L27: 4 | M27: 9 | N27: 3.79 | O27: 5
K28: Jul | L28: 3 | M28: 8 | N28: 2.87 | O28: 4
K29: Aug | L29: 3 | M29: 13 | N29: 3.28 | O29: 4
K30: Sep | L30: 4 | M30: 14 | N30: 3.74 | O30: 5
K31: Oct | L31: 5 | M31: 14 | N31: 5.17 | O31: 7
K32: Nov | L32: 4 | M32: 11 | N32: 4.45 | O32: 6
K33: Dec | L33: 5 | M33: 11 | N33: 5.47 | O33: 7
K34: Annual | L34: =AVERAGE(L22:L33) -> 4 | M34: =MAX(M22:M33) -> 14 | N34: =AVERAGE(N22:N33) -> 3.99 | O34: =MAX(O22:O33) -> 7
A48: Comments :

Sheet TOC
A1: =+'Cover Page'!$B$29 -> Annual Performance Report 2021 | E1: =+'Cover Page'!$B$33 -> enfinium Ferrybridge 2 Ltd
A3: Monitoring of Total organic carbon emissions | D3: Whole Installation | G3: See Notes in Cell Q3 | J3: =+A3 -> Monitoring of Total organic carbon emissions | N3: Per Combustion Line | Q3: Notes:
Q4: User to add logic to complete Whole installation, Table A5:G18. From the data in Per Combustion Line, Table J6:O79, subject to No. of lines installed
A5: mg/Nm3 | B5: 1/2 Hourly Reference Periods | E5: Daily Reference Periods
A6: =+'Cover Page'!C39 -> 2021 | B6: 1/2 hourly TOC ELV | C6: Monthly 1/2 hourly mean | D6: Highest 1/2 hourly maximum | E6: Daily TOC ELV | F6: Monthly daily mean | G6: Highest daily maximum | J6: =+A6 -> 2021 | K6: mg/Nm3 | L6: Monthly 1/2 hourly mean | M6: Monthly 1/2 hourly maximum | N6: Monthly daily mean | O6: Monthly daily maximum
A7: Jan | B7: 20 | C7: =AVERAGE(L7,L22) -> 0 | D7: =MAX(M7,M22) -> 3 | E7: 10 | F7: =AVERAGE(N7,N22) -> 0.355 | G7: =MAX(O7,O22) -> 1 | J7: A1 | K7: Jan | L7: 0 | M7: 1 | N7: 0.22 | O7: 0
A8: Feb | B8: 20 | C8: =AVERAGE(L8,L23) -> 0 | D8: =MAX(M8,M23) -> 1 | E8: 10 | F8: =AVERAGE(N8,N23) -> 0.255 | G8: =MAX(O8,O23) -> 0 | K8: Feb | L8: 0 | M8: 1 | N8: 0.21 | O8: 0
A9: Mar | B9: 20 | C9: 0 | D9: 1 | E9: 10 | F9: 0.29 | G9: 0 | K9: Mar | L9: 0 | M9: 1 | N9: 0.24 | O9: 0 | Q9: Whole Installation table A5:G18:
A10: Apr | B10: 20 | C10: 0 | D10: 3 | E10: 10 | F10: 0.28 | G10: 0 | K10: Apr | L10: 0 | M10: 3 | N10: 0.38 | O10: 0 | Q10: Mean: for 1/2 hourly and daily periods calculate mean of values across all operational combustion lines for the month
A11: May | B11: 20 | C11: 0 | D11: 1 | E11: 10 | F11: 0.235 | G11: 0 | K11: May | L11: 0 | M11: 1 | N11: 0.34 | O11: 0
A12: Jun | B12: 20 | C12: 0 | D12: 1 | E12: 10 | F12: 0.43 | G12: 1 | K12: Jun | L12: 0 | M12: 1 | N12: 0.37 | O12: 0
A13: Jul | B13: 20 | C13: 0 | D13: 2 | E13: 10 | F13: 0.415 | G13: 1 | K13: Jul | L13: 0 | M13: 2 | N13: 0.34 | O13: 0 | Q13: Maximum: for 1/2 hourly and daily periods use the highest value across all operational combustion lines for the month
A14: Aug | B14: 20 | C14: 0 | D14: 1 | E14: 10 | F14: 0.37 | G14: 1 | K14: Aug | L14: 0 | M14: 1 | N14: 0.34 | O14: 0
A15: Sep | B15: 20 | C15: 0 | D15: 4 | E15: 10 | F15: 0.405 | G15: 1 | K15: Sep | L15: 0 | M15: 2 | N15: 0.38 | O15: 1
A16: Oct | B16: 20 | C16: 0 | D16: 7 | E16: 10 | F16: 0.395 | G16: 1 | K16: Oct | L16: 0 | M16: 1 | N16: 0.34 | O16: 0
A17: Nov | B17: 20 | C17: 0 | D17: 3 | E17: 10 | F17: 0.32 | G17: 1 | K17: Nov | L17: 0 | M17: 3 | N17: 0.22 | O17: 1
A18: Dec | B18: 20 | C18: 0 | D18: 2 | E18: 10 | F18: 0.305 | G18: 1 | K18: Dec | L18: 0 | M18: 1 | N18: 0.2 | O18: 0
K19: Annual | L19: =AVERAGE(L7:L18) -> 0 | M19: =MAX(M7:M18) -> 3 | N19: =AVERAGE(N7:N18) -> 0.2983333333 | O19: =MAX(O7:O18) -> 1
J21: =+A6 -> 2021 | K21: mg/Nm3 | L21: Monthly 1/2 hourly mean | M21: Monthly 1/2 hourly maximum | N21: Monthly daily mean | O21: Monthly daily maximum
J22: A2 | K22: Jan | L22: 0 | M22: 3 | N22: 0.49 | O22: 1
K23: Feb | L23: 0 | M23: 1 | N23: 0.3 | O23: 0
K24: Mar | L24: 0 | M24: 1 | N24: 0.34 | O24: 0
K25: Apr | L25: 0 | M25: 1 | N25: 0.18 | O25: 0
K26: May | L26: 0 | M26: 1 | N26: 0.13 | O26: 0
K27: Jun | L27: 0 | M27: 1 | N27: 0.49 | O27: 1
K28: Jul | L28: 0 | M28: 1 | N28: 0.49 | O28: 1
K29: Aug | L29: 0 | M29: 1 | N29: 0.4 | O29: 1
K30: Sep | L30: 0 | M30: 4 | N30: 0.43 | O30: 1
K31: Oct | L31: 0 | M31: 7 | N31: 0.45 | O31: 1
K32: Nov | L32: 0 | M32: 3 | N32: 0.42 | O32: 1
K33: Dec | L33: 0 | M33: 2 | N33: 0.41 | O33: 1
K34: Annual | L34: =AVERAGE(L22:L33) -> 0 | M34: =MAX(M22:M33) -> 7 | N34: =AVERAGE(N22:N33) -> 0.3775 | O34: =MAX(O22:O33) -> 1
A48: Comments :

Sheet Particulates
A1: =+'Cover Page'!$B$29 -> Annual Performance Report 2021 | E1: =+'Cover Page'!$B$33 -> enfinium Ferrybridge 2 Ltd
A3: Monitoring of Particulate matter emissions | D3: Whole Installation | G3: See Notes in Cell Q3 | J3: =+A3 -> Monitoring of Particulate matter emissions | N3: Per Combustion Line | Q3: Notes:
Q4: User to add logic to complete Whole installation, Table A5:G18. From the data in Per Combustion Line, Table J6:O79, subject to No. of lines installed
A5: mg/Nm3 | B5: 1/2 Hourly Reference Periods | E5: Daily Reference Periods
A6: =+'Cover Page'!C39 -> 2021 | B6: 1/2 hourly PM ELV | C6: Monthly 1/2 hourly mean | D6: Highest 1/2 hourly maximum | E6: Daily PM ELV | F6: Monthly daily mean | G6: Highest daily maximum | J6: =+A6 -> 2021 | K6: mg/Nm3 | L6: Monthly 1/2 hourly mean | M6: Monthly 1/2 hourly maximum | N6: Monthly daily mean | O6: Monthly daily maximum
A7: Jan | B7: 30 | C7: =AVERAGE(L7,L22) -> 0.5 | D7: =MAX(M7,M22) -> 44 | E7: 10 | F7: =AVERAGE(N7,N22) -> 0.655 | G7: =MAX(O7,O22) -> 3 | J7: A1 | K7: Jan | L7: 0 | M7: 1 | N7: 0.22 | O7: 0
A8: Feb | B8: 30 | C8: =AVERAGE(L8,L23) -> 1 | D8: =MAX(M8,M23) -> 28 | E8: 10 | F8: =AVERAGE(N8,N23) -> 1.245 | G8: =MAX(O8,O23) -> 7 | K8: Feb | L8: 1 | M8: 28 | N8: 1.25 | O8: 7
A9: Mar | B9: 30 | C9: 2 | D9: 12 | E9: 10 | F9: 1.77 | G9: 6 | K9: Mar | L9: 3 | M9: 12 | N9: 2.53 | O9: 6 | Q9: Whole Installation table A5:G18:
A10: Apr | B10: 30 | C10: 1.5 | D10: 8 | E10: 10 | F10: 1.385 | G10: 2 | K10: Apr | L10: 2 | M10: 7 | N10: 1.66 | O10: 2 | Q10: Mean: for 1/2 hourly and daily periods calculate mean of values across all operational combustion lines for the month
A11: May | B11: 30 | C11: 2.5 | D11: 99 | E11: 10 | F11: 2.41 | G11: 13 | K11: May | L11: 3 | M11: 99 | N11: 3.24 | O11: 13
A12: Jun | B12: 30 | C12: 3 | D12: 9 | E12: 10 | F12: 2.775 | G12: 5 | K12: Jun | L12: 4 | M12: 9 | N12: 3.63 | O12: 5
A13: Jul | B13: 30 | C13: 3.5 | D13: 11 | E13: 10 | F13: 3.365 | G13: 7 | K13: Jul | L13: 4 | M13: 11 | N13: 3.64 | O13: 7 | Q13: Maximum: for 1/2 hourly and daily periods use the highest value across all operational combustion lines for the month
A14: Aug | B14: 30 | C14: 3.5 | D14: 10 | E14: 10 | F14: 3.47 | G14: 6 | K14: Aug | L14: 5 | M14: 10 | N14: 4.65 | O14: 6
A15: Sep | B15: 30 | C15: 3.5 | D15: 15 | E15: 10 | F15: 3.73 | G15: 7 | K15: Sep | L15: 5 | M15: 15 | N15: 5.21 | O15: 7
A16: Oct | B16: 30 | C16: 2.5 | D16: 129 | E16: 10 | F16: 2.525 | G16: 5 | K16: Oct | L16: 3 | M16: 10 | N16: 3.46 | O16: 5
A17: Nov | B17: 30 | C17: 2.5 | D17: 8 | E17: 10 | F17: 2.965 | G17: 7 | K17: Nov | L17: 4 | M17: 8 | N17: 4.43 | O17: 7
A18: Dec | B18: 30 | C18: 4 | D18: 10 | E18: 10 | F18: 4.265 | G18: 8 | K18: Dec | L18: 5 | M18: 10 | N18: 5.14 | O18: 8
K19: Annual | L19: =AVERAGE(L7:L18) -> 3.25 | M19: =MAX(M7:M18) -> 99 | N19: =AVERAGE(N7:N18) -> 3.255 | O19: =MAX(O7:O18) -> 13
J21: =+A6 -> 2021 | K21: mg/Nm3 | L21: Monthly 1/2 hourly mean | M21: Monthly 1/2 hourly maximum | N21: Monthly daily mean | O21: Monthly daily maximum
J22: A2 | K22: Jan | L22: 1 | M22: 44 | N22: 1.09 | O22: 3
K23: Feb | L23: 1 | M23: 13 | N23: 1.24 | O23: 2
K24: Mar | L24: 1 | M24: 4 | N24: 1.01 | O24: 1
K25: Apr | L25: 1 | M25: 8 | N25: 1.11 | O25: 2
K26: May | L26: 2 | M26: 8 | N26: 1.58 | O26: 2
K27: Jun | L27: 2 | M27: 4 | N27: 1.92 | O27: 3
K28: Jul | L28: 3 | M28: 8 | N28: 3.09 | O28: 6
K29: Aug | L29: 2 | M29: 6 | N29: 2.29 | O29: 3
K30: Sep | L30: 2 | M30: 4 | N30: 2.25 | O30: 3
K31: Oct | L31: 2 | M31: 129 | N31: 1.59 | O31: 5
K32: Nov | L32: 1 | M32: 3 | N32: 1.5 | O32: 2
K33: Dec | L33: 3 | M33: 8 | N33: 3.39 | O33: 6
K34: Annual | L34: =AVERAGE(L22:L33) -> 1.75 | M34: =MAX(M22:M33) -> 129 | N34: =AVERAGE(N22:N33) -> 1.838333333 | O34: =MAX(O22:O33) -> 6
A48: Comments :

Sheet NH3
A1: =+'Cover Page'!$B$29 -> Annual Performance Report 2021 | E1: =+'Cover Page'!$B$33 -> enfinium Ferrybridge 2 Ltd
A3: Monitoring of Ammnonia emissions | D3: Whole Installation | G3: See Notes in Cell Q3 | J3: =+A3 -> Monitoring of Ammnonia emissions | N3: Per Combustion Line | Q3: Notes:
Q4: User to add logic to complete Whole installation, Table A5:G18. From the data in Per Combustion Line, Table J6:O79, subject to No. of lines installed
A5: mg/Nm3 | B5: 1/2 Hourly Reference Periods | E5: Daily Reference Periods
A6: =+'Cover Page'!C39 -> 2021 | B6: 1/2 hourly NH3 ELV | C6: Monthly 1/2 hourly mean | D6: Highest 1/2 hourly maximum | E6: Daily NH3 ELV | F6: Monthly daily mean | G6: Highest daily maximum | J6: =+A6 -> 2021 | K6: mg/Nm3 | L6: Monthly 1/2 hourly mean | M6: Monthly 1/2 hourly maximum | N6: Monthly daily mean | O6: Monthly daily maximum
A7: Jan | B7: 30 | C7: =AVERAGE(L7,L22) -> 0 | D7: =MAX(M7,M22) -> 1 | E7: 0 | F7: =AVERAGE(N7,N22) -> 0.005 | G7: =MAX(O7,O22) -> 0 | J7: A1 | K7: Jan | L7: 0 | M7: 0 | N7: 0 | O7: 0
A8: Feb | B8: =+B7 -> 30 | C8: =AVERAGE(L8,L23) -> 0 | D8: =MAX(M8,M23) -> 3 | E8: 0 | F8: =AVERAGE(N8,N23) -> 0.06 | G8: =MAX(O8,O23) -> 1 | K8: Feb | L8: 0 | M8: 3 | N8: 0.05 | O8: 1
A9: Mar | B9: =+B8 -> 30 | C9: 0 | D9: 1 | E9: 0 | F9: 0.025 | G9: 1 | K9: Mar | L9: 0 | M9: 1 | N9: 0.05 | O9: 1 | Q9: Whole Installation table A5:G18:
A10: Apr | B10: 30 | C10: 0 | D10: 0 | E10: 0 | F10: 0.03 | G10: 0 | K10: Apr | L10: 0 | M10: 0 | N10: 0.06 | O10: 0 | Q10: Mean: for 1/2 hourly and daily periods calculate mean of values across all operational combustion lines for the month
A11: May | B11: 30 | C11: 0 | D11: 11 | E11: 0 | F11: 0.14 | G11: 2 | K11: May | L11: 0 | M11: 11 | N11: 0.28 | O11: 2
A12: Jun | B12: 30 | C12: 0 | D12: 1 | E12: 0 | F12: 0.095 | G12: 0 | K12: Jun | L12: 0 | M12: 1 | N12: 0.19 | O12: 0
A13: Jul | B13: 30 | C13: 0 | D13: 1 | E13: 0 | F13: 0.08 | G13: 0 | K13: Jul | L13: 0 | M13: 1 | N13: 0.16 | O13: 0 | Q13: Maximum: for 1/2 hourly and daily periods use the highest value across all operational combustion lines for the month
A14: Aug | B14: 30 | C14: 0 | D14: 0 | E14: 0 | F14: 0.07 | G14: 0 | K14: Aug | L14: 0 | M14: 0 | N14: 0.14 | O14: 0
A15: Sep | B15: 30 | C15: 0 | D15: 1 | E15: =+E14 -> 0 | F15: 0.065 | G15: 0 | K15: Sep | L15: 0 | M15: 0 | N15: 0.13 | O15: 0
A16: Oct | B16: 30 | C16: 0 | D16: 1 | E16: 0 | F16: 0.015 | G16: 0 | K16: Oct | L16: 0 | M16: 0 | N16: 0.03 | O16: 0
A17: Nov | B17: 30 | C17: 0 | D17: 3 | E17: 0 | F17: 0.02 | G17: 0 | K17: Nov | L17: 0 | M17: 0 | N17: 0.03 | O17: 0
A18: Dec | B18: 30 | C18: 0 | D18: 2 | E18: 0 | F18: 0.01 | G18: 0 | K18: Dec | L18: 0 | M18: 0 | N18: 0.01 | O18: 0
K19: Annual | L19: =AVERAGE(L7:L18) -> 0 | M19: =MAX(M7:M18) -> 11 | N19: =AVERAGE(N7:N18) -> 0.09416666667 | O19: =MAX(O7:O18) -> 2
J21: =+A6 -> 2021 | K21: mg/Nm3 | L21: Monthly 1/2 hourly mean | M21: Monthly 1/2 hourly maximum | N21: Monthly daily mean | O21: Monthly daily maximum
J22: A2 | K22: Jan | L22: 0 | M22: 1 | N22: 0.01 | O22: 0
K23: Feb | L23: 0 | M23: 0 | N23: 0.07 | O23: 0
K24: Mar | L24: 0 | M24: 0 | N24: 0 | O24: 0
K25: Apr | L25: 0 | M25: 0 | N25: 0 | O25: 0
K26: May | L26: 0 | M26: 0 | N26: 0 | O26: 0
K27: Jun | L27: 0 | M27: 1 | N27: 0 | O27: 0
K28: Jul | L28: 0 | M28: 0 | N28: 0 | O28: 0
K29: Aug | L29: 0 | M29: 0 | N29: 0 | O29: 0
K30: Sep | L30: 0 | M30: 1 | N30: 0 | O30: 0
K31: Oct | L31: 0 | M31: 1 | N31: 0 | O31: 0
K32: Nov | L32: 0 | M32: 3 | N32: 0.01 | O32: 0
K33: Dec | L33: 0 | M33: 2 | N33: 0.01 | O33: 0
K34: Annual | L34: =AVERAGE(L22:L33) -> 0 | M34: =MAX(M22:M33) -> 3 | N34: =AVERAGE(N22:N33) -> 0.008333333333 | O34: =MAX(O22:O33) -> 0
A48: Comments :
A49: An indicated ELV value of zero in the table above means that no ammonia limit is set in the permit.

Sheet CO 95% 10 min
A1: =+'Cover Page'!$B$29 -> Annual Performance Report 2021 | E1: =+'Cover Page'!$B$33 -> enfinium Ferrybridge 2 Ltd
A3: Monitoring of Carbon Monoxide (10-minute avg) | E3: Whole Installation | H3: See Notes in Cell S3 | J3: =+A3 -> Monitoring of Carbon Monoxide (10-minute avg) | O3: Per Combustion Line | Q3: Notes: | S3: Notes:
S4: User to add logic to complete Whole installation, Table A5:H18. From the data in Per Combustion Line, Table K6:Q79, subject to No. of lines installed
A5: mg/Nm3 | B5: 10-minute Reference Periods | F5: Daily Reference Periods
A6: =+'Cover Page'!C39 -> 2021 | B6: 95%ile 10-min avg CO ELV | C6: 95%ile 10-min avg maximum | D6: Monthly CO 10-min avg mean | E6: 10-min avg maximum | F6: Daily CO ELV | G6: Monthly daily mean | H6: Highest daily maximum | K6: =+A6 -> 2021 | L6: mg/Nm3 | M6: 95%ile 10-min avg maximum | N6: Monthly CO 10-min avg mean | O6: 10-min avg maximum | P6: Monthly daily mean | Q6: Monthly daily maximum
A7: Jan | B7: 150 | C7: =MAX(M7,M22) -> 6 | D7: =AVERAGE(N7,N22) -> 1.5 | E7: =MAX(O7,O22) -> 316 | F7: 50 | G7: =AVERAGE(P7,P22) -> 1.57 | H7: =MAX(Q7,Q22) -> 3 | K7: A1 | L7: Jan | M7: 5 | N7: 1 | O7: 136 | P7: 1.26 | Q7: 3
A8: Feb | B8: =+B7 -> 150 | C8: =MAX(M8,M23) -> 5 | D8: =AVERAGE(N8,N23) -> 2 | E8: =MAX(O8,O23) -> 125 | F8: =+F7 -> 50 | G8: =AVERAGE(P8,P23) -> 1.62 | H8: =MAX(Q8,Q23) -> 3 | L8: Feb | M8: 5 | N8: 2 | O8: 125 | P8: 1.49 | Q8: 3
A9: Mar | B9: =+B8 -> 150 | C9: =MAX(M9,M24) -> 4 | D9: 1 | E9: =MAX(O9,O24) -> 85 | F9: =+F8 -> 50 | G9: 1.19 | H9: =MAX(Q9,Q24) -> 3 | L9: Mar | M9: 4 | N9: 1 | O9: 85 | P9: 1.4 | Q9: 3 | S9: Whole Installation table A5:H18:
A10: Apr | B10: 150 | C10: 6 | D10: 1.5 | E10: 378 | F10: 50 | G10: 1.36 | H10: 4 | L10: Apr | M10: 5 | N10: 2 | O10: 378 | P10: 1.7 | Q10: 4 | S10: Mean: for 10-min and daily periods use average of all operational combustion lines.
A11: May | B11: 150 | C11: 6 | D11: 2 | E11: 27 | F11: 50 | G11: 1.69 | H11: 4 | L11: May | M11: 6 | N11: 2 | O11: 27 | P11: 1.6 | Q11: 4
A12: Jun | B12: 150 | C12: 7 | D12: 1 | E12: 39 | F12: 50 | G12: 1.45 | H12: 3 | L12: Jun | M12: 7 | N12: 1 | O12: 39 | P12: 1.48 | Q12: 3
A13: Jul | B13: 150 | C13: 6 | D13: 1.5 | E13: 195 | F13: 50 | G13: 1.425 | H13: 3 | L13: Jul | M13: 6 | N13: 2 | O13: 195 | P13: 1.63 | Q13: 3 | S13: Maximum: for 10-min and daily periods use the highest of all operational combustion lines in any month.
A14: Aug | B14: 150 | C14: 5 | D14: 1 | E14: 61 | F14: 50 | G14: 1.28 | H14: 3 | L14: Aug | M14: 5 | N14: 1 | O14: 61 | P14: 1.49 | Q14: 3
A15: Sep | B15: 150 | C15: 7 | D15: 1.5 | E15: 420 | F15: 50 | G15: 1.405 | H15: 5 | L15: Sep | M15: 7 | N15: 2 | O15: 307 | P15: 1.68 | Q15: 4
A16: Oct | B16: 150 | C16: 8 | D16: 2.5 | E16: 154 | F16: 50 | G16: 2.33 | H16: 4 | L16: Oct | M16: 7 | N16: 3 | O16: 17 | P16: 2.54 | Q16: 4
A17: Nov | B17: 150 | C17: 9 | D17: 3.5 | E17: 511 | F17: 50 | G17: 3.195 | H17: 6 | L17: Nov | M17: 8 | N17: 3 | O17: 511 | P17: 2.86 | Q17: 6
A18: Dec | B18: 150 | C18: 9 | D18: 3 | E18: 270 | F18: 50 | G18: 2.92 | H18: 5 | L18: Dec | M18: 8 | N18: 2 | O18: 16 | P18: 2.23 | Q18: 3
L19: Annual | M19: =AVERAGE(M7:M18) -> 6.083333333 | N19: =AVERAGE(N7:N18) -> 1.833333333 | O19: =MAX(O7:O18) -> 511 | P19: =AVERAGE(P7:P18) -> 1.78 | Q19: =MAX(Q7:Q18) -> 6
K21: =+A6 -> 2021 | L21: mg/Nm3 | M21: 95%ile 10-min avg maximum | N21: Monthly CO 10-min avg mean | O21: 10-min avg maximum | P21: Monthly daily mean | Q21: Monthly daily maximum
K22: A2 | L22: Jan | M22: 6 | N22: 2 | O22: 316 | P22: 1.88 | Q22: 3
L23: Feb | M23: 5 | N23: 2 | O23: 56 | P23: 1.75 | Q23: 3
L24: Mar | M24: 3 | N24: 1 | O24: 39 | P24: 0.98 | Q24: 2
L25: Apr | M25: 6 | N25: 1 | O25: 122 | P25: 1.02 | Q25: 2
L26: May | M26: 5 | N26: 2 | O26: 15 | P26: 1.78 | Q26: 3
L27: Jun | M27: 5 | N27: 1 | O27: 12 | P27: 1.42 | Q27: 2
L28: Jul | M28: 6 | N28: 1 | O28: 37 | P28: 1.22 | Q28: 2
L29: Aug | M29: 5 | N29: 1 | O29: 16 | P29: 1.07 | Q29: 2
L30: Sep | M30: 5 | N30: 1 | O30: 420 | P30: 1.13 | Q30: 5
L31: Oct | M31: 8 | N31: 2 | O31: 154 | P31: 2.12 | Q31: 4
L32: Nov | M32: 9 | N32: 4 | O32: 389 | P32: 3.53 | Q32: 6
L33: Dec | M33: 9 | N33: 4 | O33: 270 | P33: 3.61 | Q33: 5
L34: Annual | M34: =AVERAGE(M22:M33) -> 6 | N34: =AVERAGE(N22:N33) -> 1.833333333 | O34: =MAX(O22:O33) -> 420 | P34: =AVERAGE(P22:P33) -> 1.7925 | Q34: =MAX(Q22:Q33) -> 6
A48: Comments :
A49: Environment Agency explanatory note: The 10-minute average ELV is based on the “95th percentile”. In this case this means that 95% of the 10 minute averages in the relevant 24-hour period (i.e. 137) must be below 150 mg/Nm3, and 5% (i.e. 7) are allowed to be any value above 150 mg/Nm3. Whilst we expect operators to minimise CO emissions at all times, it is perfectly acceptable for the value of the maximum 10-minute average to be above 150 mg/Nm3, provided the 95th percentile ELV has been met for that period.
